bitfinex/quotes_SOLUSD_20241101
["timestamp","ask_amount","ask_price","bid_price","bid_amount"]
[1730462805337,10.88081736,168.32,168.29,5.942]
[1730462805741,10.88081736,168.31,168.28,14.8556]
[1730462806231,10.88081736,168.31,168.28,20.798]
[1730462806530,10.88081736,168.32,168.28,20.798]
[1730462806714,10.88081736,168.31,168.28,20.798]
[1730462806910,10.88081736,168.31,168.28,14.8556]
[1730462807328,10.88081736,168.32,168.28,20.798]
[1730462808029,10.88081736,168.31,168.28,20.798]
[1730462808444,10.88081736,168.31,168.28,14.8556]
[1730462809117,10.88081736,168.35,168.3,10.88081736]
[1730462809317,10.88081736,168.35,168.31,10.88081736]
[1730462809511,21.9416,168.36,168.31,10.88081736]
[1730462809512,32.82241736,168.36,168.31,10.88081736]
[1730462809718,16.82041736,168.36,168.31,10.88081736]
[1730462810233,10.88081736,168.35,168.31,16.82211736]
[1730462810444,10.88081736,168.35,168.31,5.9413]
[1730462810828,10.88081736,168.35,168.31,20.7948]
[1730462811533,10.88081736,168.36,168.31,31.67561736]
[1730462812120,10.88081736,168.35,168.31,31.67561736]
[1730462813017,10.88081736,168.36,168.31,31.67561736]
[1730462813215,10.88081736,168.36,168.31,20.7948]
[1730462813216,10.88081736,168.35,168.31,20.7948]
[1730462813521,10.88081736,168.34,168.31,20.7948]
[1730462814329,10.88081736,168.34,168.31,14.8535]
[1730462815639,10.88081736,168.32,168.28,14.8559]
[1730462815846,10.88081736,168.31,168.28,14.8559]
[1730462816640,10.88081736,168.31,168.28,20.7983]
[1730462817345,16.82221736,168.31,168.27,10.88081736]
[1730462817647,10.88081736,168.3,168.26,5.9429]
[1730462821556,10.88081736,168.29,168.26,5.9429]
[1730462822036,10.88081736,168.28,168.26,5.9429]
[1730462822247,10.88081736,168.27,168.25,6.197736]
[1730462822544,10.88081736,168.26,168.23,5.9439]
[1730462822944,10.88081736,168.27,168.23,5.9439]
[1730462823532,10.88081736,168.27,168.23,20.8045]
[1730462828139,10.88081736,168.26,168.23,14.8606]
[1730462828533,10.88081736,168.25,168.23,14.8606]
[1730462829351,10.88081736,168.24,168.21,5.9448]
[1730462829737,10.88081736,168.22,168.2,27.00426574]
[1730462830049,10.88081736,168.21,168.17,20.8114]
[1730462830256,10.88081736,168.2,168.17,27.00911669]
[1730462833034,10.88081736,168.2,168.17,14.8654]
[1730462833737,10.88081736,168.19,168.17,14.8654]
[1730462834540,10.88081736,168.2,168.17,14.8654]
[1730462835359,10.88081736,168.21,168.17,25.74621736]
[1730462835538,10.88081736,168.23,168.19,10.88081736]
[1730462836567,10.88081736,168.23,168.18,10.88081736]
[1730462837559,10.88081736,168.24,168.19,20.8097]
[1730462837859,16.82361736,168.27,168.22,10.88081736]
[1730462838162,10.88081736,168.26,168.22,10.88081736]
[1730462838583,10.88081736,168.26,168.21,10.88081736]
[1730462838855,10.88081736,168.26,168.21,16.82531736]
[1730462839661,10.88081736,168.29,168.24,10.88081736]
[1730462840855,10.88081736,168.29,168.22,30.155084]
[1730462841161,10.88081736,168.28,168.23,31.68561736]
[1730462843565,10.88081736,168.27,168.23,20.8048]
[1730462844862,10.88081736,168.28,168.23,31.68561736]
[1730462845743,10.88081736,168.31,168.26,10.88081736]
[1730462845959,10.88081736,168.34,168.29,10.88081736]
[1730462846166,10.88081736,168.34,168.25,44.153354]
[1730462846167,10.88081736,168.37,168.32,10.88081736]
[1730462846342,16.82021736,168.37,168.32,10.88081736]
[1730462846963,16.82021736,168.37,168.32,16.82171736]
[1730462848052,16.82021736,168.37,168.33,23.902374]
[1730462848053,10.88081736,168.37,168.33,23.902374]
[1730462848250,10.88081736,168.39,168.34,10.88081736]
[1730462848452,10.88081736,168.39,168.33,23.776884]
[1730462848453,10.88081736,168.38,168.33,34.65770136]
[1730462849468,10.88081736,168.38,168.33,40.59810136]
[1730462849776,10.88081736,168.37,168.33,40.59810136]
[1730462850251,16.81951736,168.39,168.34,10.88081736]
[1730462850571,10.88081736,168.4,168.35,10.88081736]
[1730462851150,10.88081736,168.39,168.35,10.88081736]
[1730462851350,10.88081736,168.38,168.34,16.82091736]
[1730462851740,10.88081736,168.37,168.34,5.9401]
[1730462852573,10.88081736,168.39,168.35,23.776884]
[1730462853369,10.88081736,168.38,168.34,20.7909]
[1730462855857,16.81961736,168.39,168.35,23.776884]
[1730462856474,10.88081736,168.38,168.35,23.776884]
[1730462856771,10.88081736,168.36,168.34,20.7909]
[1730462857362,10.88081736,168.37,168.34,20.7909]
[1730462857560,15.2777,168.44,168.34,20.7909]
[1730462857870,10.88081736,168.37,168.34,20.7909]
[1730462858170,10.88081736,168.38,168.34,20.7909]
[1730462859945,10.88081736,168.36,168.34,14.8508]
[1730462861479,10.88081736,168.37,168.35,23.776884]
[1730462862967,10.88081736,168.39,168.35,55.44740136]
[1730462863477,10.88081736,168.38,168.35,44.566584]
[1730462864681,10.88081736,168.39,168.35,44.566584]
[1730462866379,16.81941736,168.39,168.35,44.566584]
[1730462866556,10.88081736,168.37,168.35,44.566584]
[1730462866753,10.88081736,168.36,168.34,23.776884]
[1730462867275,10.88081736,168.36,168.33,12.2406]
[1730462869270,10.88081736,168.38,168.33,23.12141736]
[1730462869577,10.88081736,168.38,168.33,37.97311736]
[1730462869959,10.88081736,168.4,168.35,10.88081736]
[1730462872057,10.88081736,168.39,168.36,5.9396]
[1730462873279,10.88081736,168.39,168.35,5.94]
[1730462874656,10.88081736,168.36,168.33,21.1519]
[1730462874864,10.88081736,168.34,168.32,5.9407]
[1730462875155,10.88081736,168.35,168.3,10.88081736]
[1730462875356,10.88081736,168.35,168.31,20.7949]
[1730462876282,10.88081736,168.35,168.32,29.717684]
[1730462876659,10.88081736,168.35,168.32,44.570284]
[1730462880186,10.88081736,168.34,168.32,44.570284]
[1730462880764,10.88081736,168.36,168.32,44.570284]
[1730462881496,10.88081736,168.35,168.32,44.570284]
[1730462882990,10.88081736,168.36,168.32,44.570284]
[1730462883687,10.88081736,168.37,168.32,55.45110136]
[1730462883995,10.88081736,168.38,168.32,55.45110136]
[1730462884172,10.88081736,168.36,168.32,55.45110136]
[1730462885988,10.88081736,168.38,168.34,23.776884]
[1730462886167,5.9371,168.43,168.32,55.45110136]
[1730462886168,10.88081736,168.37,168.32,55.45110136]
[1730462886570,10.88081736,168.34,168.32,20.7934]
[1730462886780,10.88081736,168.33,168.31,5.9411]
[1730462887088,10.88081736,168.32,168.29,20.7966]
[1730462887389,10.88081736,168.31,168.29,20.7966]
[1730462888291,10.88081736,168.34,168.29,25.73561736]
[1730462889286,10.88081736,168.34,168.3,23.776884]
[1730462889498,10.88081736,168.33,168.3,23.776884]
[1730462890490,10.88081736,168.34,168.3,34.65770136]
[1730462890699,10.88081736,168.37,168.32,10.88081736]
[1730462891470,10.88081736,168.36,168.33,23.776884]
[1730462891671,10.88081736,168.38,168.34,10.88081736]
[1730462891976,16.81961736,168.39,168.34,10.88081736]
[1730462892475,5.9388,168.39,168.35,10.88081736]
[1730462893079,5.9382,168.4,168.36,10.88081736]
[1730462894495,10.88081736,168.41,168.37,10.88081736]
[1730462894696,10.88081736,168.41,168.36,31.66951736]
[1730462895493,16.81861736,168.41,168.36,31.66951736]
[1730462897270,10.88081736,168.39,168.34,10.88081736]
[1730462898975,16.81971736,168.38,168.33,31.67291736]
[1730462900179,16.81861736,168.41,168.36,10.88081736]
[1730462901486,30.028,168.42,168.37,10.88081736]
[1730462901487,32.00251736,168.42,168.37,10.88081736]
[1730462902394,10.88081736,168.41,168.36,31.66951736]
[1730462903280,16.81881736,168.41,168.36,31.66951736]
[1730462903805,5.938,168.41,168.37,10.88081736]
[1730462904100,16.81881736,168.41,168.36,31.66951736]
[1730462906507,10.88081736,168.38,168.35,5.94]
[1730462906681,10.88081736,168.37,168.35,5.94]
[1730462907577,10.88081736,168.38,168.35,5.94]
[1730462908303,10.88081736,168.37,168.34,23.776884]
[1730462908798,10.88081736,168.35,168.31,23.19681736]
[1730462909000,10.88081736,168.35,168.31,5.9412]
[1730462909193,10.88081736,168.34,168.31,5.9412]
[1730462909502,10.88081736,168.34,168.3,31.67661736]
[1730462910381,10.88081736,168.34,168.31,23.776884]
[1730462910581,10.88081736,168.36,168.31,34.65770136]
[1730462911179,10.88081736,168.36,168.32,10.88081736]
[1730462911380,10.88081736,168.38,168.33,34.65770136]
[1730462911579,16.81931736,168.39,168.34,10.88081736]
[1730462911785,10.88081736,168.38,168.34,16.82101736]
[1730462912076,10.88081736,168.38,168.34,5.9402]
[1730462914004,10.88081736,168.4,168.35,34.65770136]
[1730462915397,16.81911736,168.4,168.35,40.59740136]
[1730462915800,10.88081736,168.39,168.35,29.716584]
[1730462919692,16.81911736,168.4,168.35,40.59740136]
[1730462920009,16.81911736,168.4,168.35,40.59760136]
[1730462920209,10.88081736,168.39,168.35,40.59760136]
[1730462921591,16.81911736,168.4,168.35,55.44760136]
[1730462923506,10.88081736,168.39,168.35,55.44760136]
[1730462923713,10.88081736,168.4,168.35,55.44760136]
[1730462924715,16.81901736,168.4,168.35,55.44760136]
[1730462925719,10.88081736,168.39,168.35,55.44760136]
[1730462926620,10.88081736,168.39,168.35,44.566784]
[1730462931613,16.81951736,168.39,168.35,44.566784]
[1730462934911,16.81951736,168.39,168.35,94.566784]
[1730462935232,10.88081736,168.38,168.35,50.0]
[1730462938641,30.0285,168.42,168.35,66.82071736]
[1730462938642,10.88081736,168.4,168.35,66.82071736]
[1730462941040,16.81931736,168.4,168.35,66.82071736]
[1730462941834,16.81931736,168.4,168.35,50.0]
[1730462941835,10.88081736,168.39,168.35,50.0]
[1730462944038,10.88081736,168.38,168.35,50.0]
[1730462944242,10.88081736,168.36,168.35,50.0]
[1730462945921,26.45891736,168.36,168.35,50.0]
[1730462946121,47.24761736,168.36,168.25,26.8832]
[1730462946321,10.88081736,168.29,168.25,26.8832]
[1730462947147,10.88081736,168.29,168.25,37.76401736]
[1730462947526,10.88081736,168.28,168.23,10.88081736]
[1730462947727,10.88081736,168.28,168.23,16.82501736]
[1730462948027,10.88081736,168.27,168.22,10.88081736]
[1730462948427,10.88081736,168.27,168.23,10.88081736]
[1730462949124,10.88081736,168.28,168.23,10.88081736]
[1730462949333,16.82341736,168.28,168.23,10.88081736]
[1730462950641,16.82341736,168.28,168.23,16.82481736]
[1730462951027,16.82341736,168.28,168.24,10.88081736]
[1730462951622,16.82341736,168.28,168.23,16.82481736]
[1730462951823,10.88081736,168.27,168.22,31.68671736]
[1730462952336,16.82341736,168.28,168.23,10.88081736]
[1730462952542,16.82341736,168.28,168.24,10.88081736]
[1730462952737,10.88081736,168.29,168.25,10.88081736]
[1730462954853,10.88081736,168.28,168.24,31.68421736]
[1730462955047,10.88081736,168.29,168.24,31.68421736]
[1730462955356,10.88081736,168.3,168.25,10.88081736]
[1730462956549,10.88081736,168.29,168.25,10.88081736]
[1730462956751,10.88081736,168.29,168.25,16.82431736]
[1730462957236,5.9424,168.28,168.24,10.88081736]
[1730462957437,10.88081736,168.27,168.22,16.82531736]
[1730462958243,16.82321736,168.28,168.23,10.88081736]
[1730462958549,10.88081736,168.29,168.24,10.88081736]
[1730462959543,10.88081736,168.29,168.24,16.82451736]
[1730462960629,5.9424,168.28,168.24,16.82451736]
[1730462961653,16.82321736,168.28,168.24,10.88081736]
[1730462962558,10.88081736,168.29,168.24,10.88081736]
[1730462963365,10.88081736,168.28,168.24,10.88081736]
[1730462963532,10.88081736,168.27,168.22,16.82531736]
[1730462963852,10.88081736,168.25,168.21,22.98920146]
[1730462964050,10.88081736,168.25,168.21,16.82571736]
[1730462964259,10.88081736,168.26,168.21,16.82571736]
[1730462964934,16.82411736,168.26,168.21,16.82571736]
[1730462965549,5.9433,168.26,168.22,10.88081736]
[1730462965735,16.82411736,168.26,168.21,10.88081736]
[1730462966534,16.82411736,168.26,168.22,10.88081736]
[1730462968055,16.82411736,168.26,168.21,10.88081736]
[1730462969154,16.82411736,168.26,168.22,10.88081736]
[1730462969155,5.9433,168.26,168.22,10.88081736]
[1730462971442,5.9433,168.26,168.22,16.82521736]
[1730462971645,5.9433,168.26,168.23,10.88081736]
[1730462972058,10.88081736,168.25,168.2,10.88081736]
[1730462972255,10.88081736,168.24,168.19,10.88081736]
[1730462972555,10.88081736,168.23,168.18,16.82661736]
[1730462973346,10.88081736,168.22,168.18,16.82661736]
[1730462973558,10.88081736,168.22,168.18,10.88081736]
[1730462973961,10.88081736,168.22,168.17,20.8116]
[1730462974264,16.2965,168.25,168.17,14.8654]
[1730462974265,10.88081736,168.2,168.17,14.8654]
[1730462974646,10.88081736,168.21,168.17,14.8654]
[1730462975851,16.82591736,168.21,168.17,14.8654]
[1730462978959,16.82591736,168.21,168.16,16.82751736]
[1730462980465,16.82591736,168.21,168.17,10.88081736]
[1730462983871,10.88081736,168.22,168.17,10.88081736]
[1730462985567,10.88081736,168.22,168.18,10.88081736]
[1730462986669,5.9449,168.21,168.18,10.88081736]
[1730462987469,10.88081736,168.23,168.18,10.88081736]
[1730462987764,5.9445,168.22,168.18,10.88081736]
[1730462993968,10.88081736,168.19,168.14,17.03509951]
[1730462994276,16.82531736,168.22,168.17,10.88081736]
[1730462994465,5.9445,168.22,168.18,10.88081736]
[1730462994978,16.82531736,168.22,168.17,10.88081736]
[1730462995380,16.82531736,168.22,168.18,10.88081736]
[1730462996475,5.9445,168.22,168.18,10.88081736]
[1730462998377,5.9445,168.22,168.19,10.88081736]
[1730462998571,5.9445,168.22,168.2,10.88081736]
[1730462998773,5.9445,168.22,168.19,10.88081736]
[1730462998954,10.88081736,168.21,168.17,10.88081736]
[1730462999156,5.9445,168.22,168.18,10.88081736]
[1730462999567,5.9445,168.22,168.19,10.88081736]
[1730463000181,5.9445,168.22,168.16,5.9465]
[1730463000182,5.9445,168.22,168.18,10.88081736]
[1730463000383,5.9442,168.24,168.2,10.88081736]
[1730463000673,5.9442,168.24,168.16,64.33646944]
[1730463000674,5.9442,168.24,168.21,10.88081736]
[1730463001062,10.88081736,168.26,168.21,10.88081736]
[1730463001263,5.9432,168.26,168.22,10.88081736]
[1730463001466,5.9432,168.26,168.23,10.88081736]
[1730463001773,10.88081736,168.26,168.22,10.88081736]
[1730463001975,5.9428,168.27,168.23,10.88081736]
[1730463002663,16.82361736,168.27,168.22,10.88081736]
[1730463006479,5.9428,168.27,168.23,10.88081736]
[1730463008484,5.9428,168.27,168.22,14.8614]
[1730463008485,5.9428,168.27,168.24,10.88081736]
[1730463008681,5.9428,168.27,168.23,10.88081736]
[1730463008890,16.82361736,168.27,168.23,10.88081736]
[1730463009969,16.82361736,168.27,168.22,25.74221736]
[1730463011291,16.82361736,168.27,168.23,10.88081736]
[1730463011590,10.88081736,168.26,168.21,10.88081736]
[1730463011885,5.9428,168.27,168.22,10.88081736]
[1730463011886,16.82361736,168.27,168.22,10.88081736]
[1730463012083,10.88081736,168.28,168.23,10.88081736]
[1730463012467,10.88081736,168.28,168.24,10.88081736]
[1730463012681,10.88081736,168.3,168.26,10.88081736]
[1730463012987,5.9414,168.31,168.27,10.88081736]
[1730463013770,10.88081736,168.32,168.27,10.88081736]
[1730463014084,16.82181736,168.32,168.27,16.82351736]
[1730463014283,5.941,168.32,168.28,10.88081736]
[1730463014589,5.941,168.32,168.29,10.88081736]
[1730463015395,5.941,168.32,168.28,10.88081736]
[1730463016701,16.82081736,168.35,168.3,10.88081736]
[1730463017186,5.94,168.35,168.31,10.88081736]
[1730463018097,16.82081736,168.35,168.3,10.88081736]
[1730463019503,16.82041736,168.36,168.31,10.88081736]
[1730463019695,16.82011736,168.37,168.32,10.88081736]
[1730463020007,10.88081736,168.36,168.31,10.88081736]
[1730463020708,16.82051736,168.36,168.31,10.88081736]
[1730463021591,10.88081736,168.35,168.3,31.67681736]
[1730463021790,10.88081736,168.34,168.29,10.88081736]
[1730463021986,10.88081736,168.33,168.28,16.82321736]
[1730463024111,16.82141736,168.34,168.29,10.88081736]
[1730463025993,16.82141736,168.34,168.29,16.82281736]
[1730463027604,10.88081736,168.32,168.28,25.73691736]
[1730463027810,10.88081736,168.31,168.27,10.88081736]
[1730463027993,10.88081736,168.32,168.27,10.88081736]
[1730463028197,10.88081736,168.32,168.28,10.88081736]
[1730463029599,10.88081736,168.32,168.27,10.88081736]
[1730463029923,10.88081736,168.3,168.26,10.88081736]
[1730463030217,10.88081736,168.3,168.23,31.1769]
[1730463030218,10.88081736,168.29,168.24,10.88081736]
[1730463030403,10.88081736,168.27,168.23,31.68511736]
[1730463030592,10.88081736,168.28,168.23,31.68511736]
[1730463031119,10.88081736,168.27,168.23,31.68511736]
[1730463031415,10.88081736,168.28,168.23,10.88081736]
[1730463031787,16.82341736,168.28,168.23,10.88081736]
[1730463032710,16.82341736,168.28,168.23,16.82491736]
[1730463034714,10.88081736,168.31,168.26,10.88081736]
[1730463034901,10.88081736,168.33,168.28,10.88081736]
[1730463035218,10.88081736,168.32,168.27,10.88081736]
[1730463036511,10.88081736,168.3,168.26,10.88081736]
[1730463037803,5.9418,168.3,168.26,10.88081736]
[1730463039205,10.88081736,168.3,168.26,10.88081736]
[1730463040017,10.88081736,168.3,168.25,16.82421736]
[1730463040214,5.9421,168.29,168.25,16.82421736]
[1730463041419,5.9421,168.29,168.25,10.88081736]
[1730463041921,5.9421,168.29,168.25,16.82421736]
[1730463042214,10.88081736,168.3,168.26,10.88081736]
[1730463042431,5.9418,168.3,168.26,10.88081736]
[1730463046419,16.82261736,168.3,168.25,10.88081736]
[1730463046595,5.9418,168.3,168.26,10.88081736]
[1730463047124,10.88081736,168.31,168.26,10.88081736]
[1730463047419,5.9414,168.31,168.27,10.88081736]
[1730463048116,16.82221736,168.31,168.26,10.88081736]
[1730463049022,16.82221736,168.31,168.26,16.82381736]
[1730463049404,5.9414,168.31,168.27,10.88081736]
[1730463051425,16.82221736,168.31,168.26,31.68171736]
[1730463051819,10.88081736,168.3,168.26,31.68171736]
[1730463052902,16.82241736,168.31,168.26,31.68171736]
[1730463053731,10.88081736,168.3,168.26,31.68171736]
[1730463055707,10.88081736,168.31,168.26,31.68171736]
[1730463057437,16.82251736,168.31,168.26,31.68171736]
[1730463061432,10.88081736,168.31,168.26,31.68171736]
[1730463061633,16.82151736,168.33,168.27,10.88081736]
[1730463061819,16.82151736,168.33,168.27,16.82331736]
[1730463062023,16.82151736,168.33,168.27,31.68031736]
[1730463062415,10.88081736,168.34,168.29,10.88081736]
[1730463063128,10.88081736,168.33,168.28,10.88081736]
[1730463063531,10.88081736,168.33,168.29,10.88081736]
[1730463066538,16.82161736,168.33,168.29,16.82271736]
[1730463067342,16.82161736,168.33,168.29,5.9419]
[1730463070139,10.88081736,168.33,168.29,5.9419]
[1730463071422,16.82111736,168.34,168.29,16.82271736]
[1730463071622,10.88081736,168.34,168.29,31.67801736]
[1730463071830,15.9607,168.36,168.29,31.67801736]
[1730463071831,16.82081736,168.35,168.3,10.88081736]
[1730463072022,16.82081736,168.35,168.29,20.7972]
[1730463072023,16.82081736,168.35,168.31,10.88081736]
[1730463072230,5.94,168.35,168.31,10.88081736]
[1730463072631,5.94,168.35,168.31,16.82211736]
[1730463073819,10.88081736,168.36,168.31,16.82211736]
[1730463074021,10.88081736,168.38,168.33,10.88081736]
[1730463074331,10.88081736,168.37,168.32,10.88081736]
[1730463074943,16.82011736,168.37,168.32,16.82151736]
[1730463075137,16.82011736,168.37,168.32,31.67411736]
[1730463075745,10.88081736,168.36,168.32,20.7933]
[1730463076435,10.88081736,168.34,168.3,5.9414]
[1730463076742,10.88081736,168.33,168.3,5.9414]
[1730463077926,10.88081736,168.32,168.29,20.7971]
[1730463079937,10.88081736,168.35,168.3,10.88081736]
[1730463080146,10.88081736,168.36,168.31,10.88081736]
[1730463081046,10.88081736,168.35,168.3,10.88081736]
[1730463081540,5.9393,168.37,168.29,14.8551]
[1730463081541,10.88081736,168.32,168.29,14.8551]
[1730463085741,10.88081736,168.32,168.28,5.9424]
[1730463085962,10.88081736,168.31,168.27,23.45031736]
[1730463086455,10.88081736,168.31,168.27,12.5695]
[1730463086956,16.82231736,168.31,168.27,5.9427]
[1730463088051,16.82231736,168.31,168.26,25.73831736]
[1730463088052,10.88081736,168.29,168.26,14.8575]
[1730463088447,10.88081736,168.29,168.25,16.82401736]
[1730463089155,5.942,168.3,168.26,10.88081736]
[1730463089531,5.942,168.3,168.25,16.82401736]
[1730463089532,16.82281736,168.3,168.25,16.82401736]
[1730463091539,16.82281736,168.3,168.25,25.73961736]
[1730463095063,16.82281736,168.3,168.26,16.82391736]
[1730463096452,16.82281736,168.3,168.25,25.73961736]
[1730463097577,10.88081736,168.29,168.25,31.68311736]
[1730463102051,10.88081736,168.27,168.25,14.8588]
[1730463103551,10.88081736,168.28,168.25,14.8588]
[1730463103953,10.88081736,168.31,168.26,10.88081736]
[1730463104169,10.88081736,168.31,168.27,10.88081736]
[1730463105069,5.9417,168.3,168.26,10.88081736]
[1730463106670,10.88081736,168.3,168.26,10.88081736]
[1730463108366,10.88081736,168.29,168.25,31.68281736]
[1730463110577,10.88081736,168.3,168.25,31.68281736]
[1730463111752,16.82281736,168.3,168.25,31.68281736]
[1730463112878,5.942,168.3,168.26,10.88081736]
[1730463113080,10.88081736,168.32,168.28,10.88081736]
[1730463113585,10.88081736,168.32,168.27,10.88081736]
[1730463114878,5.9414,168.31,168.27,10.88081736]
[1730463116392,5.9414,168.31,168.28,10.88081736]
[1730463116679,16.82151736,168.33,168.28,10.88081736]
[1730463116865,10.88081736,168.32,168.28,16.82311736]
[1730463118482,16.82201736,168.32,168.28,16.82311736]
[1730463121194,12.08379543,168.37,168.31,10.88081736]
[1730463121373,10.88081736,168.36,168.31,10.88081736]
[1730463122065,5.9393,168.37,168.33,10.88081736]
[1730463122581,5.9393,168.37,168.34,10.88081736]
[1730463123377,16.81961736,168.39,168.34,10.88081736]
[1730463123584,16.81961736,168.39,168.35,10.88081736]
[1730463123784,16.81961736,168.39,168.34,10.88081736]
[1730463123999,16.81961736,168.39,168.35,10.88081736]
[1730463126890,16.81961736,168.39,168.34,16.82091736]
[1730463127098,10.88081736,168.38,168.34,5.9401]
[1730463127699,16.81961736,168.39,168.34,16.82091736]
[1730463127909,10.88081736,168.39,168.35,10.88081736]
[1730463128074,16.81901736,168.4,168.35,10.88081736]
[1730463128796,10.88081736,168.39,168.35,10.88081736]
[1730463128997,10.88081736,168.39,168.35,16.82051736]
[1730463130089,10.88081736,168.39,168.34,10.88081736]
[1730463131290,10.88081736,168.39,168.35,5.94]
[1730463131493,10.88081736,168.39,168.35,16.82081736]
[1730463131691,10.88081736,168.4,168.36,10.88081736]
[1730463132783,16.81871736,168.41,168.36,16.82021736]
[1730463133103,16.81871736,168.41,168.36,31.66931736]
[1730463134400,10.88081736,168.4,168.36,31.66931736]
[1730463135374,10.88081736,168.4,168.36,20.7885]
[1730463135801,10.88081736,168.4,168.36,31.66931736]
[1730463136704,10.88081736,168.4,168.36,20.7885]
[1730463137096,16.81911736,168.4,168.36,20.7885]
[1730463137306,10.88081736,168.4,168.36,31.66931736]
[1730463139609,10.88081736,168.41,168.37,10.88081736]
[1730463140492,10.88081736,168.41,168.38,5.9389]
[1730463140681,16.81831736,168.42,168.38,5.9389]
[1730463142106,10.88081736,168.42,168.38,5.9389]
[1730463142678,10.88081736,168.42,168.38,31.66701736]
[1730463143611,10.88081736,168.42,168.38,20.7862]
[1730463143901,10.88081736,168.41,168.38,20.7862]
[1730463144587,10.88081736,168.39,168.36,5.9394]
[1730463144900,10.88081736,168.38,168.36,5.9394]
[1730463145906,10.88081736,168.37,168.35,14.8495]
[1730463146096,10.88081736,168.36,168.34,6.5396]
[1730463146485,10.88081736,168.37,168.34,6.5396]
[1730463147305,10.88081736,168.37,168.34,12.4799]
[1730463147682,10.88081736,168.37,168.34,27.3307]
[1730463147896,10.88081736,168.38,168.34,27.3307]
[1730463148706,10.88081736,168.37,168.34,27.3307]
[1730463151019,10.88081736,168.38,168.34,27.3307]
[1730463151590,14.8429,168.43,168.34,38.21151736]
[1730463151591,10.88081736,168.39,168.34,38.21151736]
[1730463152017,10.88081736,168.39,168.35,10.88081736]
[1730463153324,10.88081736,168.39,168.34,38.21151736]
[1730463153614,10.88081736,168.38,168.34,27.3307]
[1730463156497,10.88081736,168.39,168.34,38.21151736]
[1730463159721,16.81901736,168.4,168.35,10.88081736]
[1730463159934,16.81901736,168.4,168.36,5.9396]
[1730463160096,10.88081736,168.4,168.36,20.7887]
[1730463160297,5.9378,168.42,168.36,31.66951736]
[1730463160298,10.88081736,168.41,168.36,31.66951736]
[1730463163101,10.88081736,168.39,168.36,14.8491]
[1730463164504,10.88081736,168.39,168.36,20.7887]
[1730463164906,10.88081736,168.4,168.36,20.7887]
[1730463166421,5.9378,168.42,168.36,20.7887]
[1730463166422,10.88081736,168.41,168.36,25.72991736]
[1730463166929,10.88081736,168.4,168.36,14.8491]
[1730463170324,10.88081736,168.4,168.36,20.7887]
[1730463172327,16.81871736,168.41,168.37,1.48670433]
[1730463172507,16.81871736,168.41,168.36,25.72991736]
[1730463172714,16.81871736,168.41,168.37,1.48670287]
[1730463173023,16.81871736,168.41,168.36,25.72991736]
[1730463173397,16.81801736,168.43,168.38,10.88081736]
[1730463173599,10.88081736,168.42,168.37,10.88081736]
[1730463174421,16.81831736,168.42,168.38,5.9389]
[1730463175098,10.88081736,168.43,168.38,31.66701736]
[1730463175723,10.88081736,168.42,168.38,20.7862]
[1730463176603,10.88081736,168.41,168.38,20.7862]
[1730463176806,10.88081736,168.42,168.38,20.7862]
[1730463177205,10.88081736,168.43,168.38,61.36171736]
[1730463178122,10.88081736,168.43,168.38,31.66701736]
[1730463178329,10.88081736,168.42,168.38,20.7862]
[1730463179824,10.88081736,168.43,168.38,31.66701736]
[1730463181411,5.9364,168.45,168.4,10.88081736]
[1730463181630,5.9354,168.48,168.43,10.88081736]
[1730463182313,16.81621736,168.48,168.43,10.88081736]
[1730463185426,5.9354,168.48,168.44,10.88081736]
[1730463186537,16.81621736,168.48,168.43,10.88081736]
[1730463188447,16.81621736,168.48,168.44,10.88081736]
[1730463189249,10.88081736,168.47,168.42,10.88081736]
[1730463189419,5.9364,168.45,168.41,10.88081736]
[1730463189619,5.9364,168.45,168.39,21.1839]
[1730463189620,10.88081736,168.44,168.39,32.06471736]
[1730463189940,10.88081736,168.42,168.38,10.88081736]
[1730463190140,10.88081736,168.42,168.37,18.3061471]
[1730463190843,10.88081736,168.41,168.36,25.72951736]
[1730463191071,10.88081736,168.42,168.37,10.88081736]
[1730463191722,5.9378,168.41,168.37,10.88081736]
[1730463194535,5.9378,168.41,168.37,16.82001736]
[1730463196049,5.9378,168.41,168.38,10.88081736]
[1730463198431,10.88081736,168.43,168.38,10.88081736]
[1730463198634,5.9375,168.42,168.38,10.88081736]
[1730463199557,16.81831736,168.42,168.37,10.88081736]
[1730463201474,5.9375,168.42,168.38,10.88081736]
[1730463202132,5.9375,168.42,168.39,10.88081736]
[1730463202331,10.88081736,168.44,168.4,10.88081736]
[1730463202532,29.713284,168.45,168.41,10.88081736]
[1730463203559,5.9364,168.45,168.41,10.88081736]
[1730463204242,5.9364,168.45,168.42,10.88081736]
[1730463206956,5.9361,168.46,168.43,10.88081736]
[1730463207363,14.8386,168.48,168.44,10.88081736]
[1730463207364,5.9354,168.48,168.44,10.88081736]